[Event "45th FIDE Womens Olympiad 2024"]
[Site "Budapest"]
[Date "2024.09.11"]
[Round "1.24"]
[White "Doluhanova, Evgeniya"]
[Black "Sezdbekova, Aizhan"]
[Result "1-0"]
[ECO "D32"]
[WhiteElo "2304"]
[BlackElo "1799"]
[Annotator "ChessBase"]
[PlyCount "91"]
[EventDate "2024.09.05"]
[EventType "team-tourn"]
[EventCountry "HUN"]
[SourceTitle "playchess.com"]
[Source "ChessBase"]
[SourceQuality "1"]
[WhiteTeam "Ukraine"]
[BlackTeam "Kyrgyzstan"]
[WhiteTeamCountry "UKR"]
[BlackTeamCountry "KGZ"]
[TimeControl "40/5400+30:1800+30"]

1. Nf3 {[%emt 0:00:08]} Nf6 {[%emt 0:00:12]} 2. e3 {[%emt 0:01:05]} d5 {[%emt 0:00:32]} 3. c4 {[%emt 0:01:05]} e6 {[%emt 0:01:19]} 4. Nc3 {[%emt 0:01:37]} c5 {[%emt 0:03:19]} 5. cxd5 {[%emt 0:01:56]} exd5 {[%emt 0:02:25]} 6. d4 {[%emt 0:00:11]} Nc6 {[%emt 0:00:51]} 7. Be2 {[%emt 0:01:08]} cxd4 {[%emt 0:06:16]} 8. Nxd4 {[%emt 0:00:08]} Bc5 {[%emt 0:00:09]} 9. O-O {[%emt 0:05:47]} O-O {[%emt 0:01:25]} 10. Nxc6 {[%emt 0:01:08]} bxc6 {[%emt 0:00:09]} 11. b3 {[%emt 0:00:32]} Qe7 {[%emt 0:08:03]} 12. Qc2 {[%emt 0:08:07]} Bd7 {[%emt 0:06:21]} 13. Bb2 {[%emt 0:03:50]} Rac8 {[%emt 0:05:48]} 14. Bd3 {[%emt 0:16:02]} Bd6 {[%emt 0:03:14]} 15. Rfe1 {[%emt 0:09:37]} Rfe8 {[%emt 0:10:11]} 16. h3 {[%emt 0:18:42]} h6 {[%emt 0:03:33]} 17. Bf1 {[%emt 0:08:31]} Qe5 {[%emt 0:03:59]} 18. g3 {[%emt 0:03:11]} Qh5 {[%emt 0:00:21]} 19. Qd1 {[%emt 0:02:28]} Qg6 {[%emt 0:03:07]} 20. Bg2 {[%emt 0:00:49]} Bf5 {[%emt 0:03:24]} 21. Rc1 {[%emt 0:02:32]} Bb8 {[%emt 0:18:27]} 22. Ne2 {[%emt 0:04:23]} Ne4 {[%emt 0:00:59]} 23. Nf4 {[%emt 0:00:40]} Bxf4 {[%emt 0:00:54]} 24. exf4 {[%emt 0:00:11]} Qd6 {[%emt 0:00:54]} 25. g4 {[%emt 0:05:56]} Bh7 {[%emt 0:01:58]} 26. Qd4 {[%emt 0:00:32]} Nf6 {[%emt 0:01:18]} 27. Rxe8+ {[%emt 0:00:29]} Rxe8 {[%emt 0:01:52]} 28. f5 {[%emt 0:00:16]} Re7 {[%emt 0:00:42]} 29. Bf3 {[%emt 0:00:18]} Ne8 {[%emt 0:02:34]} 30. Kg2 {[%emt 0:00:14]} f6 {[%emt 0:02:40]} 31. Rxc6 {[%emt 0:01:42]} Qxc6 {[%emt 0:01:24]} 32. Bxd5+ {[%emt 0:00:08]} Qxd5+ {[%emt 0:00:03]} 33. Qxd5+ {[%emt 0:00:05]} Kh8 {[%emt 0:01:10]} 34. Qd8 {[%emt 0:00:18]} Re2 {[%emt 0:01:53]} 35. Bd4 {[%emt 0:00:05]} Bg8 {[%emt 0:00:09]} 36. Be3 {[%emt 0:00:05]} Bf7 {[%emt 0:00:13]} 37. a4 {[%emt 0:00:28]} Kh7 {[%emt 0:02:07]} 38. a5 {[%emt 0:00:23]} g6 {[%emt 0:00:52]} 39. fxg6+ {[%emt 0:01:03]} Bxg6 {[%emt 0:00:36]} 40. b4 {[%emt 0:00:42]} a6 {[%emt 0:00:18]} 41. Kf3 {[%emt 0:30:19]} Rb2 {[%emt 0:30:30]} 42. Qe7+ {[%emt 0:01:18]} Ng7 {[%emt 0:01:54]} 43. h4 {[%emt 0:00:12]} h5 {[%emt 0:01:21]} 44. g5 {[%emt 0:02:54]} fxg5 {[%emt 0:00:10]} 45. Bd4 {[%emt 0:01:08]} Rb3+ {[%emt 0:00:03]} 46. Kg2 {[%emt 0:00:23]} 1-0

[Event "45th FIDE Womens Olympiad 2024"]
[Site "Budapest"]
[Date "2024.09.11"]
[Round "1.25"]
[White "Fataliyeva, Ulviyya"]
[Black "Granados Ortiz, Maria Jose"]
[Result "1-0"]
[ECO "D02"]
[WhiteElo "2378"]
[BlackElo "1935"]
[Annotator "TA"]
[PlyCount "35"]
[EventDate "2024.09.05"]
[EventType "team-tourn"]
[EventCountry "HUN"]
[SourceTitle "playchess.com"]
[Source "ChessBase"]
[SourceQuality "1"]
[WhiteTeam "Azerbaijan"]
[BlackTeam "Nicaragua"]
[WhiteTeamCountry "AZE"]
[BlackTeamCountry "NCA"]
[TimeControl "40/5400+30:1800+30"]

{[%evp 9,35,9,5,17,54,44,127,108,115,123,116,131,114,112,132,125,131,123,255,199,409,410,407,357,823,828,29994,29995]} 1. d4 {[%emt 0:00:07]} d5 {[%emt 0:00:16]} 2. Bf4 {[%emt 0:00:05]} Bf5 {[%emt 0:01:01]} 3. Nc3 {[%emt 0:00:57]} e6 {[%emt 0:02:39]} 4. Nf3 {[%emt 0:01:45]} Nf6 {[%emt 0:02:46]} 5. e3 {[%emt 0:02:31]} Bd6 {[%emt 0:03:28]} 6. Ne5 {[%emt 0:00:41]} O-O {[%emt 0:06:10]} 7. g4 {[%emt 0:01:58]} Bg6 {[%emt 0:13:04] [#]} (7... Bxe5 $14 8. dxe5 Nxg4 (8... Bxg4 $2 {too greedy.} 9. f3 $18)) 8. h4 $1 $16 {[%emt 0:01:22] h5 would now be deadly. White is more active. White is better.} Ne4 {[%emt 0:15:03]} 9. Nxe4 {[%emt 0:09:12]} Bxe4 {[%emt 0:02:17]} 10. f3 {[%emt 0:00:30]} f6 {[%emt 0:04:21]} 11. fxe4 {[%emt 0:01:27]} fxe5 {[%emt 0:00:18]} 12. dxe5 {[%emt 0:00:22]} Be7 {[%emt 0:04:11]} 13. g5 {[%emt 0:02:08] Qh5 is the strong threat.} c6 {[%emt 0:05:05]} (13... d4 $16 {keeps fighting.}) 14. Qg4 {[%emt 0:01:34]} Qd7 {[%emt 0:08:57]} (14... Nd7 15. O-O-O (15. Qxe6+ Kh8 $18) 15... Nc5) 15. O-O-O $18 {[%emt 0:02:06]} Bc5 {[%emt 0:02:53]} 16. Bd3 {[%emt 0:03:57]} ({Don't play} 16. Bh3 Re8 17. Rhf1 Na6 $18) 16... Qe7 $2 {[%emt 0:03:31]} (16... Qe8 17. Rhf1 Na6 18. exd5 cxd5) 17. exd5 {[%emt 0:01:21][%cal Od3h7] Bxh7+! would kill now.} cxd5 {[%emt 0:08:39] [#]} 18. Bxh7+ $1 {[%emt 0:00:33][%mdl 512] White took control after the opening.   Weighted Error Value: White=0.11 (very precise) /Black=1.03.  Mistake:       	---       	Black=4      Inaccurate:     	---       	Black=2      OK:         	White=3     	Black=3      Best:        	White=4     	Black=1      Strong:       	White=1     	---} 1-0

[Event "45th FIDE Womens Olympiad 2024"]
[Site "Budapest"]
[Date "2024.09.11"]
[Round "1.26"]
[White "Martinez Orozco, Cristiana Yorlene"]
[Black "Beydullayeva, Govhar"]
[Result "0-1"]
[ECO "D46"]
[WhiteElo "1761"]
[BlackElo "2395"]
[Annotator "ChessBase"]
[PlyCount "62"]
[EventDate "2024.09.05"]
[EventType "team-tourn"]
[EventCountry "HUN"]
[SourceTitle "playchess.com"]
[Source "ChessBase"]
[SourceQuality "1"]
[WhiteTeam "Nicaragua"]
[BlackTeam "Azerbaijan"]
[WhiteTeamCountry "NCA"]
[BlackTeamCountry "AZE"]
[TimeControl "40/5400+30:1800+30"]

1. d4 {[%emt 0:00:03]} Nf6 {[%emt 0:00:05]} 2. c4 {[%emt 0:00:09]} e6 {[%emt 0:00:03]} 3. Nf3 {[%emt 0:00:18]} d5 {[%emt 0:00:08]} 4. Nc3 {[%emt 0:00:06]} c6 {[%emt 0:00:14]} 5. e3 {[%emt 0:00:18]} Nbd7 {[%emt 0:00:12]} 6. Qc2 {[%emt 0:02:31]} Bd6 {[%emt 0:04:15]} 7. Bd3 {[%emt 0:03:11]} O-O {[%emt 0:00:13]} 8. O-O {[%emt 0:00:06]} dxc4 {[%emt 0:01:05]} 9. Bxc4 {[%emt 0:00:07]} b5 {[%emt 0:00:13]} 10. Be2 {[%emt 0:00:05]} Bb7 {[%emt 0:04:46]} 11. a3 {[%emt 0:05:50]} Re8 {[%emt 0:10:12]} 12. Rd1 {[%emt 0:00:32]} Qe7 {[%emt 0:11:08]} 13. Bd2 {[%emt 0:07:25]} a6 {[%emt 0:08:18]} 14. Rac1 {[%emt 0:10:37]} e5 {[%emt 0:01:02]} 15. Be1 {[%emt 0:07:31]} e4 {[%emt 0:10:32]} 16. Nd2 {[%emt 0:00:24]} c5 {[%emt 0:00:22]} 17. dxc5 {[%emt 0:07:33]} Nxc5 {[%emt 0:01:19]} 18. Nf1 {[%emt 0:00:08]} Rac8 {[%emt 0:03:34]} 19. b4 {[%emt 0:04:12]} Ncd7 {[%emt 0:00:35]} 20. Qb3 {[%emt 0:06:47]} Ne5 {[%emt 0:04:50]} 21. Ng3 {[%emt 0:14:32]} g6 {[%emt 0:00:23]} 22. a4 {[%emt 0:11:26]} Nd3 {[%emt 0:09:29]} 23. Bxd3 {[%emt 0:03:22]} exd3 {[%emt 0:00:18]} 24. axb5 {[%emt 0:02:59]} axb5 {[%emt 0:04:02]} 25. Bd2 {[%emt 0:07:02]} h5 {[%emt 0:09:09]} 26. f3 {[%emt 0:03:29]} h4 {[%emt 0:05:47]} 27. Nf1 {[%emt 0:01:07]} h3 {[%emt 0:02:47]} 28. Re1 {[%emt 0:00:15]} hxg2 {[%emt 0:01:38]} 29. Kxg2 {[%emt 0:00:07]} Rxc3 {[%emt 0:04:54]} 30. Rxc3 {[%emt 0:01:53]} Ne4 {[%emt 0:01:05]} 31. fxe4 {[%emt 0:00:56]} Qxe4+ {[%emt 0:00:03]} 0-1

[Event "45th FIDE Womens Olympiad 2024"]
[Site "Budapest"]
[Date "2024.09.11"]
[Round "1.27"]
[White "Balajayeva, Khanim"]
[Black "Cabezas Calero, Abigail Carolina"]
[Result "1-0"]
[ECO "C11"]
[WhiteElo "2384"]
[BlackElo "1824"]
[Annotator "ChessBase"]
[PlyCount "67"]
[EventDate "2024.09.05"]
[EventType "team-tourn"]
[EventCountry "HUN"]
[SourceTitle "playchess.com"]
[Source "ChessBase"]
[SourceQuality "1"]
[WhiteTeam "Azerbaijan"]
[BlackTeam "Nicaragua"]
[WhiteTeamCountry "AZE"]
[BlackTeamCountry "NCA"]
[TimeControl "40/5400+30:1800+30"]

1. e4 {[%emt 0:00:03]} e6 {[%emt 0:00:08]} 2. d4 {[%emt 0:00:09]} d5 {[%emt 0:00:06]} 3. Nc3 {[%emt 0:00:09]} Nf6 {[%emt 0:00:49]} 4. e5 {[%emt 0:00:20]} Nfd7 {[%emt 0:00:12]} 5. f4 {[%emt 0:00:11]} a6 {[%emt 0:01:10]} 6. Nf3 {[%emt 0:02:28]} c5 {[%emt 0:01:23]} 7. Be3 {[%emt 0:02:49]} Nc6 {[%emt 0:01:47]} 8. Ne2 {[%emt 0:00:17]} Be7 {[%emt 0:02:42]} 9. c3 {[%emt 0:00:36]} b5 {[%emt 0:03:52]} 10. h4 {[%emt 0:03:12]} Bb7 {[%emt 0:05:24]} 11. h5 {[%emt 0:06:30]} cxd4 {[%emt 0:03:58]} 12. Nexd4 {[%emt 0:14:51]} Bc5 {[%emt 0:10:11]} 13. Nxc6 {[%emt 0:06:19]} Bxc6 {[%emt 0:00:15]} 14. Nd4 {[%emt 0:00:15]} Bxd4 {[%emt 0:06:18]} 15. Bxd4 {[%emt 0:04:35]} Qe7 {[%emt 0:03:59]} 16. Qg4 {[%emt 0:06:18]} f6 {[%emt 0:11:35]} 17. h6 {[%emt 0:11:48]} fxe5 {[%emt 0:08:06]} 18. hxg7 {[%emt 0:06:13]} Rg8 {[%emt 0:00:38]} 19. Rh6 {[%emt 0:01:11]} Nf6 {[%emt 0:08:20]} 20. Rxf6 {[%emt 0:03:21]} Qxf6 {[%emt 0:00:39]} 21. Bxe5 {[%emt 0:00:01]} Qg6 {[%emt 0:02:55]} 22. Qh3 {[%emt 0:02:37]} Qe4+ {[%emt 0:02:31]} 23. Kf2 {[%emt 0:00:48]} Qc2+ {[%emt 0:06:03]} 24. Kg1 {[%emt 0:00:06]} Qf5 {[%emt 0:00:46]} 25. Qe3 {[%emt 0:03:31]} Qf7 {[%emt 0:03:57]} 26. Bd3 {[%emt 0:00:55]} Bd7 {[%emt 0:03:18]} 27. Qd4 {[%emt 0:03:53]} Qh5 {[%emt 0:02:51]} 28. Rf1 {[%emt 0:02:52]} Rc8 {[%emt 0:06:51]} 29. Rf3 {[%emt 0:02:16]} Rc4 {[%emt 0:02:15]} 30. Bxc4 {[%emt 0:00:57]} bxc4 {[%emt 0:00:41]} 31. f5 {[%emt 0:01:16]} Qg5 {[%emt 0:01:14]} 32. Bf6 {[%emt 0:02:19]} Qc1+ {[%emt 0:00:41]} 33. Rf1 {[%emt 0:00:04]} Qc2 {[%emt 0:00:51]} 34. Qc5 {[%emt 0:00:19]} 1-0

[Event "45th FIDE Womens Olympiad 2024"]
[Site "Budapest"]
[Date "2024.09.11"]
[Round "1.28"]
[White "Munoz Cortez, Anahi Alexandra"]
[Black "Mammadova, Gulnar"]
[Result "0-1"]
[ECO "C58"]
[WhiteElo "1868"]
[BlackElo "2336"]
[Annotator "ChessBase"]
[PlyCount "54"]
[EventDate "2024.09.05"]
[EventType "team-tourn"]
[EventCountry "HUN"]
[SourceTitle "playchess.com"]
[Source "ChessBase"]
[SourceQuality "1"]
[WhiteTeam "Nicaragua"]
[BlackTeam "Azerbaijan"]
[WhiteTeamCountry "NCA"]
[BlackTeamCountry "AZE"]
[TimeControl "40/5400+30:1800+30"]

1. e4 {[%emt 0:00:05]} e5 {[%emt 0:00:18]} 2. Nf3 {[%emt 0:00:17]} Nc6 {[%emt 0:00:19]} 3. Bc4 {[%emt 0:00:26]} Nf6 {[%emt 0:00:26]} 4. Ng5 {[%emt 0:02:33]} d5 {[%emt 0:00:21]} 5. exd5 {[%emt 0:00:10]} Na5 {[%emt 0:00:31]} 6. Bb5+ {[%emt 0:00:29]} c6 {[%emt 0:00:26]} 7. dxc6 {[%emt 0:00:18]} bxc6 {[%emt 0:00:05]} 8. Qf3 {[%emt 0:00:12]} cxb5 {[%emt 0:01:24]} 9. Qxa8 {[%emt 0:01:02]} Be7 {[%emt 0:00:18]} 10. O-O {[%emt 0:03:17]} h6 {[%emt 0:08:48]} 11. Ne4 {[%emt 0:02:17]} Qd7 {[%emt 0:02:46]} 12. Nxf6+ {[%emt 0:01:36]} gxf6 {[%emt 0:02:48]} 13. Qe4 {[%emt 0:01:34]} Rg8 {[%emt 0:03:57]} 14. f3 {[%emt 0:07:22]} Bc5+ {[%emt 0:05:18]} 15. Kh1 {[%emt 0:00:30]} Rxg2 {[%emt 0:01:49]} 16. Qh4 {[%emt 0:24:56]} Rg4 {[%emt 0:04:32]} 17. Qxh6 {[%emt 0:09:11]} Qf5 {[%emt 0:09:45]} 18. d4 {[%emt 0:09:18]} Bb7 {[%emt 0:01:07]} 19. Nd2 {[%emt 0:01:33]} Bxd4 {[%emt 0:02:48]} 20. h3 {[%emt 0:08:03]} Rg6 {[%emt 0:02:25]} 21. Qh4 {[%emt 0:03:25]} Qxc2 {[%emt 0:02:03]} 22. Rb1 {[%emt 0:04:57]} Bxf3+ {[%emt 0:05:03]} 23. Rxf3 {[%emt 0:00:17]} Qd1+ {[%emt 0:00:10]} 24. Rf1 {[%emt 0:01:01]} Rg1+ {[%emt 0:00:17]} 25. Kh2 {[%emt 0:01:16]} Qe2+ {[%emt 0:00:08]} 26. Rf2 {[%emt 0:00:52]} Bxf2 {[%emt 0:00:29]} 27. Qe4 {[%emt 0:01:03]} Be3+ {[%emt 0:00:20]} 0-1

[Event "45th FIDE Womens Olympiad 2024"]
[Site "Budapest"]
[Date "2024.09.11"]
[Round "1.29"]
[White "Fuad Kamel Jamaliah, Natalie"]
[Black "Tokhirjonova, Gulrukhbegim"]
[Result "0-1"]
[ECO "D02"]
[WhiteElo "2003"]
[BlackElo "2380"]
[Annotator "ChessBase"]
[PlyCount "114"]
[EventDate "2024.09.05"]
[EventType "team-tourn"]
[EventCountry "HUN"]
[SourceTitle "playchess.com"]
[Source "ChessBase"]
[SourceQuality "1"]
[WhiteTeam "Jordan"]
[BlackTeam "United States of America"]
[WhiteTeamCountry "JOR"]
[BlackTeamCountry "USA"]
[TimeControl "40/5400+30:1800+30"]

1. d4 {[%emt 0:00:03]} d5 {[%emt 0:00:16]} 2. Bf4 {[%emt 0:00:07]} Nf6 {[%emt 0:00:12]} 3. e3 {[%emt 0:00:19]} e6 {[%emt 0:00:43]} 4. Nf3 {[%emt 0:00:45]} c5 {[%emt 0:00:35]} 5. c3 {[%emt 0:00:46]} Nc6 {[%emt 0:01:21]} 6. Nbd2 {[%emt 0:01:41]} Nh5 {[%emt 0:00:34]} 7. Bg3 {[%emt 0:06:10]} Nxg3 {[%emt 0:01:40]} 8. hxg3 {[%emt 0:00:07]} Bd6 {[%emt 0:01:50]} 9. Qc2 {[%emt 0:04:52]} h6 {[%emt 0:02:44]} 10. O-O-O {[%emt 0:06:22]} cxd4 {[%emt 0:04:03]} 11. exd4 {[%emt 0:04:16]} Bd7 {[%emt 0:01:57]} 12. Kb1 {[%emt 0:06:14]} Rc8 {[%emt 0:09:27]} 13. Re1 {[%emt 0:04:50]} Be7 {[%emt 0:09:37]} 14. Bb5 {[%emt 0:14:09]} Qb6 {[%emt 0:15:42]} 15. Bxc6 {[%emt 0:02:39]} bxc6 {[%emt 0:00:14]} 16. Ne5 {[%emt 0:02:30]} c5 {[%emt 0:07:22]} 17. Nxd7 {[%emt 0:05:05]} Kxd7 {[%emt 0:00:13]} 18. Nf3 {[%emt 0:01:57]} Bf6 {[%emt 0:02:18]} 19. dxc5 {[%emt 0:09:06]} Rxc5 {[%emt 0:01:09]} 20. Ne5+ {[%emt 0:05:29]} Ke7 {[%emt 0:00:57]} 21. Qb3 {[%emt 0:02:46]} Rb8 {[%emt 0:11:26]} 22. Qxb6 {[%emt 0:05:47]} Rxb6 {[%emt 0:00:19]} 23. Ka1 {[%emt 0:00:37]} d4 {[%emt 0:04:10]} 24. Nd3 {[%emt 0:07:16]} Rc7 {[%emt 0:01:24]} 25. cxd4 {[%emt 0:01:47]} Bxd4 {[%emt 0:00:30]} 26. Re2 {[%emt 0:00:13]} Rd7 {[%emt 0:02:31]} 27. Kb1 {[%emt 0:01:52]} Rb5 {[%emt 0:03:27]} 28. Rc1 {[%emt 0:01:42]} a5 {[%emt 0:00:51]} 29. Rec2 {[%emt 0:02:05]} e5 {[%emt 0:02:10]} 30. Nc5 {[%emt 0:01:52]} Rc7 {[%emt 0:03:20]} 31. Ne4 {[%emt 0:00:57]} Rcb7 {[%emt 0:01:21]} 32. Rc7+ {[%emt 0:00:20]} Rxc7 {[%emt 0:00:25]} 33. Rxc7+ {[%emt 0:00:03]} Ke6 {[%emt 0:00:12]} 34. Rc2 {[%emt 0:00:05]} f5 {[%emt 0:00:25]} 35. Nc3 {[%emt 0:00:36]} Rc5 {[%emt 0:00:07]} 36. Nd1 {[%emt 0:01:09]} Rd5 {[%emt 0:00:21]} 37. a3 {[%emt 0:00:58]} e4 {[%emt 0:00:42]} 38. Re2 {[%emt 0:00:31]} g5 {[%emt 0:01:21]} 39. g4 {[%emt 0:00:48]} fxg4 {[%emt 0:02:34]} 40. Rxe4+ {[%emt 0:00:21]} Kf5 {[%emt 0:00:07]} 41. Re8 {[%emt 0:30:30]} h5 {[%emt 0:30:47]} 42. Kc2 {[%emt 0:00:00]} Kg6 {[%emt 0:00:00]} 43. Re4 {[%emt 0:00:00]} Rd7 {[%emt 0:00:00]} 44. Re6+ {[%emt 0:00:00]} Kf5 {[%emt 0:00:00]} 45. Ra6 {[%emt 0:00:00]} Ra7 {[%emt 0:00:00]} 46. Rd6 {[%emt 0:00:00]} Be5 {[%emt 0:00:00]} 47. Rd8 {[%emt 0:00:00]} Rc7+ {[%emt 0:00:00]} 48. Kd3 {[%emt 0:00:00]} Rb7 {[%emt 0:00:00]} 49. Kc2 {[%emt 0:00:00]} Ke6 {[%emt 0:00:00]} 50. Rg8 {[%emt 0:00:00]} Bf6 {[%emt 0:00:00]} 51. Ra8 {[%emt 0:00:00]} h4 {[%emt 0:00:00]} 52. Ra6+ {[%emt 0:00:00]} Kf7 {[%emt 0:00:00]} 53. Ne3 {[%emt 0:00:00]} h3 {[%emt 0:00:00]} 54. gxh3 {[%emt 0:00:00]} gxh3 {[%emt 0:00:00]} 55. Ng4 {[%emt 0:00:00]} Bg7 {[%emt 0:00:00]} 56. Rxa5 {[%emt 0:00:00]} Rxb2+ {[%emt 0:00:00]} 57. Kc1 {[%emt 0:00:00]} Kg6 {[%emt 0:00:03]} 0-1

[Event "45th FIDE Womens Olympiad 2024"]
[Site "Budapest"]
[Date "2024.09.11"]
[Round "1.30"]
[White "Yip, Carissa"]
[Black "Serina Arafat"]
[Result "1-0"]
[ECO "A14"]
[WhiteElo "2386"]
[BlackElo "1552"]
[Annotator "ChessBase"]
[PlyCount "43"]
[EventDate "2024.09.05"]
[EventType "team-tourn"]
[EventCountry "HUN"]
[SourceTitle "playchess.com"]
[Source "ChessBase"]
[SourceQuality "1"]
[WhiteTeam "United States of America"]
[BlackTeam "Jordan"]
[WhiteTeamCountry "USA"]
[BlackTeamCountry "JOR"]
[TimeControl "40/5400+30:1800+30"]

1. Nf3 {[%emt 0:00:02]} d5 {[%emt 0:00:25]} 2. g3 {[%emt 0:00:04]} Nf6 {[%emt 0:00:18]} 3. Bg2 {[%emt 0:00:04]} e6 {[%emt 0:00:57]} 4. O-O {[%emt 0:00:10]} Be7 {[%emt 0:02:17]} 5. c4 {[%emt 0:00:14]} b6 {[%emt 0:05:18]} 6. Qa4+ {[%emt 0:05:01]} Qd7 {[%emt 0:04:44]} 7. Qc2 {[%emt 0:00:25]} Bb7 {[%emt 0:05:18]} 8. Ne5 {[%emt 0:07:56]} Qd8 {[%emt 0:03:22]} 9. d4 {[%emt 0:00:22]} O-O {[%emt 0:03:36]} 10. Rd1 {[%emt 0:00:30]} Nbd7 {[%emt 0:11:30]} 11. cxd5 {[%emt 0:01:37]} exd5 {[%emt 0:13:06]} 12. Nc3 {[%emt 0:14:24]} c6 {[%emt 0:08:31]} 13. Qf5 {[%emt 0:12:19]} Nxe5 {[%emt 0:06:43]} 14. dxe5 {[%emt 0:00:56]} Nd7 {[%emt 0:00:27]} 15. e4 {[%emt 0:03:09]} Bc8 {[%emt 0:14:50]} 16. exd5 {[%emt 0:00:25]} Nc5 {[%emt 0:00:54]} 17. Qh5 {[%emt 0:04:01]} Qd7 {[%emt 0:08:18]} 18. dxc6 {[%emt 0:01:23]} Qc7 {[%emt 0:00:43]} 19. Nd5 {[%emt 0:00:12]} Qd8 {[%emt 0:01:29]} 20. Nf6+ {[%emt 0:02:03]} Bxf6 {[%emt 0:00:23]} 21. Rxd8 {[%emt 0:00:04]} Rxd8 {[%emt 0:00:11]} 22. c7 {[%emt 0:01:18]} 1-0

[Event "45th FIDE Womens Olympiad 2024"]
[Site "Budapest"]
[Date "2024.09.11"]
[Round "1.31"]
[White "Jeda Helal"]
[Black "Krush, Irina"]
[Result "0-1"]
[ECO "B41"]
[WhiteElo "1569"]
[BlackElo "2396"]
[Annotator "ChessBase"]
[PlyCount "70"]
[EventDate "2024.09.05"]
[EventType "team-tourn"]
[EventCountry "HUN"]
[SourceTitle "playchess.com"]
[Source "ChessBase"]
[SourceQuality "1"]
[WhiteTeam "Jordan"]
[BlackTeam "United States of America"]
[WhiteTeamCountry "JOR"]
[BlackTeamCountry "USA"]
[TimeControl "40/5400+30:1800+30"]

1. e4 {[%emt 0:00:06]} c5 {[%emt 0:00:07]} 2. Nf3 {[%emt 0:00:12]} e6 {[%emt 0:00:11]} 3. d4 {[%emt 0:00:29]} cxd4 {[%emt 0:00:08]} 4. Nxd4 {[%emt 0:00:15]} a6 {[%emt 0:00:15]} 5. c4 {[%emt 0:02:00]} Nf6 {[%emt 0:02:39]} 6. Nc3 {[%emt 0:01:32]} Qc7 {[%emt 0:01:09]} 7. Bd2 {[%emt 0:06:33]} Nc6 {[%emt 0:03:21]} 8. Be3 {[%emt 0:10:25]} Bb4 {[%emt 0:02:28]} 9. Bd3 {[%emt 0:03:48]} Nxd4 {[%emt 0:05:09]} 10. Bxd4 {[%emt 0:00:09]} e5 {[%emt 0:00:16]} 11. Be3 {[%emt 0:00:31]} Bxc3+ {[%emt 0:00:26]} 12. bxc3 {[%emt 0:00:19]} d6 {[%emt 0:00:22]} 13. f3 {[%emt 0:06:59]} O-O {[%emt 0:02:06]} 14. Rb1 {[%emt 0:01:37]} Be6 {[%emt 0:00:46]} 15. Qd2 {[%emt 0:04:47]} Bxc4 {[%emt 0:07:04]} 16. Bxc4 {[%emt 0:03:14]} Qxc4 {[%emt 0:00:04]} 17. Rxb7 {[%emt 0:00:24]} d5 {[%emt 0:00:48]} 18. Rb4 {[%emt 0:02:55]} Qc6 {[%emt 0:23:38]} 19. Rb6 {[%emt 0:04:52]} Qd7 {[%emt 0:00:29]} 20. Qf2 {[%emt 0:12:43]} Rab8 {[%emt 0:07:16]} 21. O-O {[%emt 0:04:57]} Rxb6 {[%emt 0:00:56]} 22. Bxb6 {[%emt 0:00:12]} dxe4 {[%emt 0:00:09]} 23. fxe4 {[%emt 0:01:25]} Nxe4 {[%emt 0:01:06]} 24. Qe3 {[%emt 0:00:45]} Qd5 {[%emt 0:04:41]} 25. Re1 {[%emt 0:02:01]} f5 {[%emt 0:00:44]} 26. g4 {[%emt 0:06:07]} Nd2 {[%emt 0:03:31]} 27. c4 {[%emt 0:13:23]} Nxc4 {[%emt 0:05:09]} 28. Qc5 {[%emt 0:00:33]} Qe6 {[%emt 0:04:21]} 29. Ba5 {[%emt 0:02:58]} Rc8 {[%emt 0:04:07]} 30. Qb4 {[%emt 0:03:00]} Qd5 {[%emt 0:02:05]} 31. Bb6 {[%emt 0:01:12]} Nd2 {[%emt 0:03:15]} 32. Re3 {[%emt 0:01:31]} Rc1+ {[%emt 0:04:01]} 33. Kf2 {[%emt 0:00:24]} f4 {[%emt 0:02:19]} 34. Re1 {[%emt 0:02:09]} Qf3+ {[%emt 0:00:20]} 35. Kg1 {[%emt 0:00:13]} Rxe1# {[%emt 0:00:14]} 0-1